Workbook

Sheet Contents
A1: Pupil Equity Funding - School Level Spend 2018/19
A2: The Pupil Equity Funding grant terms and conditions required local authorities (LAs) to submit school level expenditure and anticipated carry forwards at 31 March 2019.
A3: This information was received from all LAs during the first quarter of the 2019-20 financial year.
A4: This spreadsheet contains details of Pupil Equity Funding spend by schools in the 2018-2019 financial year.
A6: Contents:
A7: School Level Spend
A8: Local Authority Summary
A10: Notes:
A11: 1. For schools where revealing the allocation and spend level may be disclosive to individuals, their results have been redacted and replaced with a *.
A12: 2. The data can be selected by school stage or local authority by clicking on the drop down filter in the title (row A)
A13: 3. Some of the figures may not add up due to rounding.
A14: 4. The information as presented may not be directly comparable at school or LA level. This is because the spend by schools in the 2018-19 financial year were provided by LAs on different dates. There may be instances where the recharging of costs to individual schools was still outstanding.
A15: 6. New columns for 2018-19 have been added to inform of carry forward from 2017-18, and the cumulative spend and carry forward percentages of 2017-18 and 2018-19.
A16: 7. Where schools have combined their allocations, we have calculated the percentage spend of the total combined allocation and applied this across all schools. This percentage is then used to calculate amount spent from each school's allocation.
A17: 8. As in 2017-18, where schools were unable to spend their full allocation during the 2018-19 financial year, any underspent funds could be carried forward into the new financial year. It was expected that, other than in exceptional circumstances, it would be spent within the current academic year.
A18: 9. It is expected that any overspend at school level will be made up by local budgets.

Sheet School Level Spend
A1: Local Authority | B1: Seed Code | C1: School | D1: Stage | E1: 2017/18 PEF Carry Forward | F1: 2018/19 Allocation | G1: 2018/19 Actual PEF Expenditure | H1: 2018/19 PEF Carry Forward | I1: % Spend | J1: % Carry Forward | K1: Notes
A2: Aberdeen City | B2: 5237521 | C2: Abbotswell School | D2: Primary | E2: 13800 | F2: 56400 | G2: 29637 | H2: 40563 | I2: 42.21794872 | J2: 57.78205128
A3: Aberdeen City | B3: 5237629 | C3: Airyhall School | D3: Primary | E3: * | F3: * | G3: * | H3: * | I3: 99.76851852 | J3: 0.2314814815
A4: Aberdeen City | B4: 5237823 | C4: Ashley Road School | D4: Primary | E4: 1966.97 | F4: 11880 | G4: 12371.97 | H4: 1475 | I4: 89.34785011 | J4: 10.65214989
A5: Aberdeen City | B5: 5234026 | C5: Braehead School | D5: Primary | E5: 5262.86 | F5: 25200 | G5: 30462.86 | H5: 0 | I5: 100 | J5: 0
A6: Aberdeen City | B6: 5238129 | C6: Bramble Brae School | D6: Primary | E6: 58282.04 | F6: 102600 | G6: 94532.04 | H6: 66350 | I6: 58.75860351 | J6: 41.24139649
A7: Aberdeen City | B7: 1002929 | C7: Brimmond School | D7: Primary | E7: 5954 | F7: 40800 | G7: 28053 | H7: 18701 | I7: 60.00128331 | J7: 39.99871669
A8: Aberdeen City | B8: 5238226 | C8: Broomhill School | D8: Primary | E8: 19200 | F8: 21600 | G8: 14457 | H8: 26343 | I8: 35.43382353 | J8: 64.56617647
A9: Aberdeen City | B9: 5246423 | C9: Charleston School | D9: Primary | E9: 1342.76 | F9: 7560 | G9: 3617.76 | H9: 5285 | I9: 40.63638692 | J9: 59.36361308
A10: Aberdeen City | B10: 5238625 | C10: Cornhill School | D10: Primary | E10: 0 | F10: 79200 | G10: 59313 | H10: 19887 | I10: 74.89015152 | J10: 25.10984848
A11: Aberdeen City | B11: 1004247 | C11: Countesswells School | D11: Primary | E11: 0 | F11: 0 | G11: 0 | H11: 0 | I11: N/A | J11: N/A
A12: Aberdeen City | B12: 5234522 | C12: Culter School | D12: Primary | E12: 2580 | F12: 46800 | G12: 17398 | H12: 31982 | I12: 35.23288781 | J12: 64.76711219
A13: Aberdeen City | B13: 5234727 | C13: Cults Primary School | D13: Primary | E13: 5000 | F13: 16200 | G13: 13284 | H13: 7916 | I13: 62.66037736 | J13: 37.33962264
A14: Aberdeen City | B14: 5246326 | C14: Danestone Primary School | D14: Primary | E14: 1328.64 | F14: 6000 | G14: 6967.64 | H14: 361 | I14: 95.07412016 | J14: 4.925879836
A15: Aberdeen City | B15: 5234921 | C15: Dyce Primary School | D15: Primary | E15: 16726 | F15: 60000 | G15: 34377 | H15: 42349 | I15: 44.80489013 | J15: 55.19510987
A16: Aberdeen City | B16: 5239427 | C16: Fernielea School | D16: Primary | E16: 7080 | F16: 33480 | G16: 27155 | H16: 13405 | I16: 66.95019724 | J16: 33.04980276
A17: Aberdeen City | B17: 5239524 | C17: Ferryhill School | D17: Primary | E17: 5558 | F17: 26400 | G17: 6378 | H17: 25580 | I17: 19.95744415 | J17: 80.04255585
A18: Aberdeen City | B18: 5246121 | C18: Forehill School | D18: Primary | E18: 1811 | F18: 6480 | G18: 3699 | H18: 4592 | I18: 44.61464238 | J18: 55.38535762
A19: Aberdeen City | B19: 5241626 | C19: Gilcomstoun School | D19: Primary | E19: 8660.01 | F19: 33480 | G19: 10149.01 | H19: 31991 | I19: 24.08402371 | J19: 75.91597629
A20: Aberdeen City | B20: 5235529 | C20: Glashieburn School | D20: Primary | E20: 1334 | F20: 10800 | G20: 10843 | H20: 1291 | I20: 89.3604747 | J20: 10.6395253
A21: Aberdeen City | B21: 5248922 | C21: Greenbrae School | D21: Primary | E21: * | F21: * | G21: * | H21: * | I21: 55.10402403 | J21: 44.89597597
A22: Aberdeen City | B22: 5239729 | C22: Hanover Street School | D22: Primary | E22: 18 | F22: 46440 | G22: 17243 | H22: 29215 | I22: 37.11524388 | J22: 62.88475612
A23: Aberdeen City | B23: 5239826 | C23: Hazlehead Primary School | D23: Primary | E23: 0 | F23: 24000 | G23: 24000 | H23: 0 | I23: 100 | J23: 0
A24: Aberdeen City | B24: 5230829 | C24: Heathryburn School | D24: Primary | E24: 1500 | F24: 114000 | G24: 54457 | H24: 61043 | I24: 47.14891775 | J24: 52.85108225
A25: Aberdeen City | B25: 5239923 | C25: Holy Family RC School | D25: Primary | E25: 6 | F25: 9720 | G25: 8240 | H25: 1486 | I25: 84.72136541 | J25: 15.27863459
A26: Aberdeen City | B26: 5245923 | C26: Kaimhill Primary School | D26: Primary | E26: 14248 | F26: 94800 | G26: 62295 | H26: 46753 | I26: 57.12621965 | J26: 42.87378035
A27: Aberdeen City | B27: 5241820 | C27: Kingsford School | D27: Primary | E27: 0 | F27: 52920 | G27: 52920 | H27: 0 | I27: 100 | J27: 0
A28: Aberdeen City | B28: 5235227 | C28: Kingswells Primary School | D28: Primary | E28: * | F28: * | G28: * | H28: * | I28: 30.37156195 | J28: 69.62843805
A29: Aberdeen City | B29: 5240522 | C29: Kirkhill School | D29: Primary | E29: 28469.87 | F29: 61200 | G29: 60763.87 | H29: 28906 | I29: 67.76397691 | J29: 32.23602309
A30: Aberdeen City | B30: 5240425 | C30: Kittybrewster School | D30: Primary | E30: 1576.25 | F30: 70800 | G30: 4257.25 | H30: 68119 | I30: 5.882109117 | J30: 94.11789088
A31: Aberdeen City | B31: 5246024 | C31: Loirston School | D31: Primary | E31: 16600 | F31: 15600 | G31: 24119 | H31: 8081 | I31: 74.90372671 | J31: 25.09627329
A32: Aberdeen City | B32: 5241723 | C32: Manor Park School | D32: Primary | E32: 35941.03 | F32: 117600 | G32: 153541.03 | H32: 0 | I32: 100 | J32: 0
A33: Aberdeen City | B33: 5235928 | C33: Middleton Park School | D33: Primary | E33: 2400 | F33: 7560 | G33: 3918 | H33: 6042 | I33: 39.3373494 | J33: 60.6626506
A34: Aberdeen City | B34: 5240026 | C34: Mile End School | D34: Primary | E34: 0 | F34: 30000 | G34: 30000 | H34: 0 | I34: 100 | J34: 0
A35: Aberdeen City | B35: 5235324 | C35: Milltimber School | D35: Primary | E35: 0 | F35: 8400 | G35: 8400 | H35: 0 | I35: 100 | J35: 0
A36: Aberdeen City | B36: 5241022 | C36: Muirfield School | D36: Primary | E36: 33714.48 | F36: 56160 | G36: 89874.48 | H36: 0 | I36: 100 | J36: 0
A37: Aberdeen City | B37: 5241227 | C37: Quarryhill School | D37: Primary | E37: 40060.97 | F37: 109200 | G37: 137756.97 | H37: 11504 | I37: 92.2926938 | J37: 7.707306203
A38: Aberdeen City | B38: 5230420 | C38: Riverbank School | D38: Primary | E38: 51882.58 | F38: 124800 | G38: 123860.58 | H38: 52822 | I38: 70.10344766 | J38: 29.89655234
A39: Aberdeen City | B39: 5234123 | C39: Scotstown School | D39: Primary | E39: 2639.07 | F39: 25200 | G39: 12817.07 | H39: 15022 | I39: 46.03986412 | J39: 53.96013588
A40: Aberdeen City | B40: 5241529 | C40: Seaton School | D40: Primary | E40: 34762.85 | F40: 74400 | G40: 107457.85 | H40: 1705 | I40: 98.43811333 | J40: 1.561886667
A41: Aberdeen City | B41: 5241421 | C41: Skene Square School | D41: Primary | E41: 9803.22 | F41: 42000 | G41: 36478.22 | H41: 15325 | I41: 70.41689686 | J41: 29.58310314
A42: Aberdeen City | B42: 5241928 | C42: St Joseph's RC School | D42: Primary | E42: 0 | F42: 7200 | G42: 1598 | H42: 5602 | I42: 22.19444444 | J42: 77.80555556
A43: Aberdeen City | B43: 5242126 | C43: St Peter's RC School | D43: Primary | E43: 11155.89 | F43: 12960 | G43: 14851.89 | H43: 9264 | I43: 61.58549405 | J43: 38.41450595
A44: Aberdeen City | B44: 5235421 | C44: Stoneywood School | D44: Primary | E44: 8189.29 | F44: 15600 | G44: 21676.29 | H44: 2113 | I44: 91.11785177 | J44: 8.882148227
A45: Aberdeen City | B45: 5242223 | C45: Sunnybank School | D45: Primary | E45: 10000 | F45: 74400 | G45: 61218 | H45: 23182 | I45: 72.53317536 | J45: 27.46682464
A46: Aberdeen City | B46: 5242428 | C46: Tullos School | D46: Primary | E46: 50354.6 | F46: 154800 | G46: 147184.6 | H46: 57970 | I46: 71.74326094 | J46: 28.25673906
A47: Aberdeen City | B47: 5242827 | C47: Walker Road School | D47: Primary | E47: 15828.7 | F47: 106800 | G47: 93072.7 | H47: 29556 | I47: 75.89797494 | J47: 24.10202506
A48: Aberdeen City | B48: 5230624 | C48: Westpark School | D48: Primary | E48: 19369 | F48: 80400 | G48: 75750 | H48: 24019 | I48: 75.92538765 | J48: 24.07461235
A49: Aberdeen City | B49: 5243122 | C49: Woodside School | D49: Primary | E49: 16517 | F49: 114000 | G49: 102072 | H49: 28445 | I49: 78.20590421 | J49: 21.79409579
A50: Aberdeen City | B50: 5244439 | C50: Aberdeen Grammar School | D50: Secondary | E50: 0 | F50: 25200 | G50: 7824 | H50: 17376 | I50: 31.04761905 | J50: 68.95238095
A51: Aberdeen City | B51: 5235634 | C51: Bridge Of Don Academy | D51: Secondary | E51: 13508.33 | F51: 24000 | G51: 26952.33 | H51: 10556 | I51: 71.85691818 | J51: 28.14308182
A52: Aberdeen City | B52: 5234034 | C52: Bucksburn Academy | D52: Secondary | E52: 0 | F52: 37200 | G52: 34654 | H52: 2546 | I52: 93.15591398 | J52: 6.844086022
A53: Aberdeen City | B53: 5235839 | C53: Cults Academy | D53: Secondary | E53: 8636.62 | F53: 18000 | G53: 15450.62 | H53: 11186 | I53: 58.00518234 | J53: 41.99481766
A54: Aberdeen City | B54: 5243335 | C54: Dyce Academy | D54: Secondary | E54: 92 | F54: 19200 | G54: 5592 | H54: 13700 | I54: 28.98610823 | J54: 71.01389177
A55: Aberdeen City | B55: 5243238 | C55: Harlaw Academy | D55: Secondary | E55: 47876.91 | F55: 52800 | G55: 73616.91 | H55: 27060 | I55: 73.12194027 | J55: 26.87805973
A56: Aberdeen City | B56: 5243432 | C56: Hazlehead Academy | D56: Secondary | E56: 14000 | F56: 37200 | G56: 10276 | H56: 40924 | I56: 20.0703125 | J56: 79.9296875
A57: Aberdeen City | B57: 5243831 | C57: Kincorth Academy | D57: Secondary | E57: 0 | F57: 0 | G57: 0 | H57: N/A | I57: N/A | J57: N/A | K57: Kincorth and Torry were combined to form Lochside during 2018/19
A58: Aberdeen City | C58: Lochside Academy | D58: Secondary | E58: 16945.67 | F58: 74400 | G58: 35811 | H58: 55534.67 | I58: 39.20382871 | J58: 60.79617129 | K58: Kincorth and Torry were combined to form Lochside during 2017-18
A59: Aberdeen City | B59: 5244234 | C59: Northfield Academy | D59: Secondary | E59: 36505.19 | F59: 132000 | G59: 115630.19 | H59: 52875 | I59: 68.62114455 | J59: 31.37885545
A60: Aberdeen City | B60: 5246237 | C60: Oldmachar Academy | D60: Secondary | E60: 3110.25 | F60: 14400 | G60: 8020.25 | H60: 9490 | I60: 45.80317243 | J60: 54.19682757
A61: Aberdeen City | B61: 5246431 | C61: St Machar Academy | D61: Secondary | E61: 9864 | F61: 123120 | G61: 50400 | H61: 82584 | I61: 37.89929616 | J61: 62.10070384
A62: Aberdeen City | B62: 5244838 | C62: Torry Academy | D62: Secondary | E62: 0 | F62: 0 | G62: 0 | H62: N/A | I62: N/A | J62: N/A | K62: Kincorth and Torry were combined to form Lochside during 2018/19
A63: Aberdeen City | B63: 5245044 | C63: Aberdeen School for the Deaf | D63: Special | E63: 5341.62 | F63: 12960 | G63: 16774.62 | H63: 1527 | I63: 91.65647631 | J63: 8.343523688
A64: Aberdeen City | B64: 1004140 | C64: Orchard Brae School | D64: Special | E64: 27288 | F64: 28800 | G64: 49977 | H64: 6111 | I64: 89.10462131 | J64: 10.89537869 | K64: Woodlands/Hazlewood/Cordyce Merged during 2017/18
A65: Aberdeen City | B65: 5240042 | C65: Pupil Support Service | D65: Special | E65: 0 | F65: 0 | G65: 0 | H65: - | I65: N/A | J65: N/A
A66: Aberdeenshire | B66: 5212227 | C66: Aberchirder School | D66: Primary | E66: 10751.2 | F66: 18000 | G66: 24134.1 | H66: 4617.1 | I66: 83.94119202 | J66: 16.05880798
A67: Aberdeenshire | B67: 5256127 | C67: Aboyne Primary School | D67: Primary | E67: 16945.42 | F67: 32400 | G67: 37058.06 | H67: 12287.36 | I67: 75.09928986 | J67: 24.90071014
A68: Aberdeenshire | B68: 5232422 | C68: Alehousewells School | D68: Primary | E68: 4994.71 | F68: 20400 | G68: 19470.75 | H68: 5923.96 | I68: 76.67246446 | J68: 23.32753554
A69: Aberdeenshire | B69: 5224020 | C69: Alford Primary School | D69: Primary | E69: 2390.94 | F69: 18360 | G69: 21651.69 | H69: -900.75 | I69: 104.3407672 | J69: -4.340767213
A70: Aberdeenshire | B70: 5251524 | C70: Arduthie School | D70: Primary | E70: 6232.32 | F70: 20400 | G70: 11735.93 | H70: 14896.39 | I70: 44.06649515 | J70: 55.93350485
A71: Aberdeenshire | B71: 5224128 | C71: Arnage School | D71: Primary | E71: 0 | F71: 0 | G71: 0 | H71: 0 | I71: N/A | J71: N/A
A72: Aberdeenshire | B72: 5249821 | C72: Auchenblae School | D72: Primary | E72: 9542.77 | F72: 8640 | G72: 16938.81 | H72: 1243.96 | I72: 93.15857815 | J72: 6.841421852
A73: Aberdeenshire | B73: 5215420 | C73: Auchnagatt School | D73: Primary | E73: * | F73: * | G73: * | H73: * | I73: 65.09022963 | J73: 34.90977037
A74: Aberdeenshire | B74: 5225922 | C74: Auchterellon School | D74: Primary | E74: 5336.43 | F74: 16800 | G74: 17925.81 | H74: 4210.62 | I74: 80.97877571 | J74: 19.02122429
A75: Aberdeenshire | B75: 5215528 | C75: Auchterless School | D75: Primary | E75: * | F75: * | G75: * | H75: * | I75: 59.55505819 | J75: 40.44494181
A76: Aberdeenshire | B76: 5256224 | C76: Ballater School | D76: Primary | E76: 4062.26 | F76: 10800 | G76: 8497.21 | H76: 6365.05 | I76: 57.17306789 | J76: 42.82693211
A77: Aberdeenshire | B77: 5224225 | C77: Balmedie School | D77: Primary | E77: 9258.1 | F77: 20400 | G77: 24912.75 | H77: 4745.35 | I77: 83.99981792 | J77: 16.00018208
A78: Aberdeenshire | B78: 5257824 | C78: Banchory Primary School | D78: Primary | E78: 6115.55 | F78: 21600 | G78: 15410.75 | H78: 12304.8 | I78: 55.60326243 | J78: 44.39673757
A79: Aberdeenshire | B79: 5249023 | C79: Banchory-Devenick School | D79: Primary | E79: 0 | F79: 0 | G79: 0 | H79: 0 | I79: N/A | J79: N/A
A80: Aberdeenshire | B80: 5212324 | C80: Banff Primary School | D80: Primary | E80: 46507.84 | F80: 74400 | G80: 67157.5 | H80: 53750.34 | I80: 55.54437165 | J80: 44.45562835
A81: Aberdeenshire | B81: 5224322 | C81: Barthol Chapel School | D81: Primary | E81: * | F81: * | G81: * | H81: * | I81: 87.89703418 | J81: 12.10296582
A82: Aberdeenshire | B82: 5249120 | C82: Bervie School | D82: Primary | E82: 10896.48 | F82: 22800 | G82: 9543.42 | H82: 24153.06 | I82: 28.32171194 | J82: 71.67828806
A83: Aberdeenshire | B83: 5215625 | C83: Boddam School | D83: Primary | E83: 13507.97 | F83: 19440 | G83: 21262.93 | H83: 11685.04 | I83: 64.53487119 | J83: 35.46512881
A84: Aberdeenshire | B84: 5212421 | C84: Bracoden School | D84: Primary | E84: * | F84: * | G84: * | H84: * | I84: 116.5050314 | J84: -16.50503135
A85: Aberdeenshire | B85: 5256429 | C85: Braemar School | D85: Primary | E85: * | F85: * | G85: * | H85: * | I85: 88.20168354 | J85: 11.79831646
A86: Aberdeenshire | B86: 5215927 | C86: Buchanhaven School | D86: Primary | E86: 6766.91 | F86: 91200 | G86: 50141.77 | H86: 47825.14 | I86: 51.18235331 | J86: 48.81764669
A87: Aberdeenshire | B87: 5216028 | C87: Burnhaven School | D87: Primary | E87: * | F87: * | G87: * | H87: * | I87: 10.82736361 | J87: 89.17263639
A88: Aberdeenshire | B88: 5224527 | C88: Cairney School | D88: Primary | E88: * | F88: * | G88: * | H88: * | I88: 62.72180953 | J88: 37.27819047
A89: Aberdeenshire | B89: 5249325 | C89: Catterline School | D89: Primary | E89: * | F89: * | G89: * | H89: * | I89: 99.94918237 | J89: 0.05081763296
A90: Aberdeenshire | B90: 5224721 | C90: Chapel Of Garioch School | D90: Primary | E90: * | F90: * | G90: * | H90: * | I90: 95.2155234 | J90: 4.784476597
A91: Aberdeenshire | B91: 5224829 | C91: Clatt School | D91: Primary | E91: 0 | F91: 0 | G91: 0 | H91: 0 | I91: N/A | J91: N/A
A92: Aberdeenshire | B92: 5218624 | C92: Clerkhill School | D92: Primary | E92: 24945.68 | F92: 76800 | G92: 66845.72 | H92: 34899.96 | I92: 65.69882869 | J92: 34.30117131
A93: Aberdeenshire | B93: 5224926 | C93: Cluny School | D93: Primary | E93: * | F93: * | G93: * | H93: * | I93: 45.95946659 | J93: 54.04053341
A94: Aberdeenshire | B94: 5225221 | C94: Craigievar School | D94: Primary | E94: * | F94: * | G94: * | H94: * | I94: 58.74117647 | J94: 41.25882353
A95: Aberdeenshire | B95: 5249422 | C95: Crathes School | D95: Primary | E95: * | F95: * | G95: * | H95: * | I95: 72.3424015 | J95: 27.6575985
A96: Aberdeenshire | B96: 5256623 | C96: Crathie School | D96: Primary | E96: * | F96: * | G96: * | H96: * | I96: 97.58132428 | J96: 2.418675723
A97: Aberdeenshire | B97: 5216125 | C97: Crimond School | D97: Primary | E97: 11077.05 | F97: 17280 | G97: 23187.25 | H97: 5169.8 | I97: 81.76890756 | J97: 18.23109244
A98: Aberdeenshire | B98: 5232627 | C98: Crombie School | D98: Primary | E98: 8790 | F98: 13200 | G98: 10855.39 | H98: 11134.61 | I98: 49.36512051 | J98: 50.63487949
A99: Aberdeenshire | B99: 5216222 | C99: Crudie School | D99: Primary | E99: * | F99: * | G99: * | H99: * | I99: 104.628536 | J99: -4.628536023
A100: Aberdeenshire | B100: 5225329 | C100: Cultercullen School | D100: Primary | E100: * | F100: * | G100: * | H100: * | I100: 94.93829658 | J100: 5.061703419
A101: Aberdeenshire | B101: 5221927 | C101: Dales Park School | D101: Primary | E101: 15226.37 | F101: 80400 | G101: 42938.66 | H101: 52687.71 | I101: 44.90253055 | J101: 55.09746945
A102: Aberdeenshire | B102: 5225426 | C102: Daviot School | D102: Primary | E102: * | F102: * | G102: * | H102: * | I102: 97.29054443 | J102: 2.709455568
A103: Aberdeenshire | B103: 5225523 | C103: Drumblade School | D103: Primary | E103: * | F103: * | G103: * | H103: * | I103: 59.42732589 | J103: 40.57267411
A104: Aberdeenshire | B104: 5256720 | C104: Drumoak School | D104: Primary | E104: * | F104: * | G104: * | H104: * | I104: 87.14443831 | J104: 12.85556169
A105: Aberdeenshire | B105: 5225620 | C105: Dunecht School | D105: Primary | E105: * | F105: * | G105: * | H105: * | I105: 61.5589525 | J105: 38.4410475
A106: Aberdeenshire | B106: 5249627 | C106: Dunnottar School | D106: Primary | E106: 4608.2 | F106: 12000 | G106: 5664.38 | H106: 10943.82 | I106: 34.10592358 | J106: 65.89407642
A107: Aberdeenshire | B107: 5251729 | C107: Durris School | D107: Primary | E107: 0 | F107: 0 | G107: 0 | H107: 0 | I107: N/A | J107: N/A
A108: Aberdeenshire | B108: 5212529 | C108: Easterfield School | D108: Primary | E108: * | F108: * | G108: * | H108: * | I108: 87.31221705 | J108: 12.68778295
A109: Aberdeenshire | B109: 5225728 | C109: Echt School | D109: Primary | E109: * | F109: * | G109: * | H109: * | I109: 53.23462318 | J109: 46.76537682
A110: Aberdeenshire | B110: 5225825 | C110: Ellon Primary School | D110: Primary | E110: 75.8 | F110: 33600 | G110: 26727.95 | H110: 6947.85 | I110: 79.36841886 | J110: 20.63158114
A111: Aberdeenshire | B111: 5233224 | C111: Elrick School | D111: Primary | E111: 3073.8 | F111: 10800 | G111: 7721.39 | H111: 6152.41 | I111: 55.65447102 | J111: 44.34552898
A112: Aberdeenshire | B112: 5216427 | C112: Fetterangus School | D112: Primary | E112: * | F112: * | G112: * | H112: * | I112: 103.4010961 | J112: -3.401096085
A113: Aberdeenshire | B113: 5249724 | C113: Fettercairn School | D113: Primary | E113: * | F113: * | G113: * | H113: * | I113: 72.81100461 | J113: 27.18899539
A114: Aberdeenshire | B114: 5216524 | C114: Fintry School | D114: Primary | E114: * | F114: * | G114: * | H114: * | I114: 100 | J114: 0
A115: Aberdeenshire | B115: 5256828 | C115: Finzean School | D115: Primary | E115: * | F115: * | G115: * | H115: * | I115: 76.56843513 | J115: 23.43156487
A116: Aberdeenshire | B116: 5216621 | C116: Fisherford School | D116: Primary | E116: * | F116: * | G116: * | H116: * | I116: 75.04682924 | J116: 24.95317076
A117: Aberdeenshire | B117: 5257921 | C117: Fishermoss School | D117: Primary | E117: -960.19 | F117: 6000 | G117: 1961.66 | H117: 3078.15 | I117: 38.92329274 | J117: 61.07670726
A118: Aberdeenshire | B118: 5212626 | C118: Fordyce School | D118: Primary | E118: * | F118: * | G118: * | H118: * | I118: 86.70836591 | J118: 13.29163409
A119: Aberdeenshire | B119: 5226120 | C119: Forgue School | D119: Primary | E119: 1508.27 | F119: 7560 | G119: 8037.5 | H119: 1030.77 | I119: 88.63322332 | J119: 11.36677668
A120: Aberdeenshire | B120: 5226228 | C120: Foveran School | D120: Primary | E120: * | F120: * | G120: * | H120: * | I120: 80.08985532 | J120: 19.91014468
A121: Aberdeenshire | B121: 5216923 | C121: Fraserburgh North School | D121: Primary | E121: 42266.87 | F121: 43200 | G121: 46842.86 | H121: 38624.01 | I121: 54.80820814 | J121: 45.19179186
A122: Aberdeenshire | B122: 5217024 | C122: Fraserburgh South Park School | D122: Primary | E122: 13913.36 | F122: 42120 | G122: 38308.79 | H122: 17724.57 | I122: 68.36782588 | J122: 31.63217412
A123: Aberdeenshire | B123: 5219922 | C123: Fyvie School | D123: Primary | E123: 8694.03 | F123: 18000 | G123: 18563.98 | H123: 8130.05 | I123: 69.54356461 | J123: 30.45643539
A124: Aberdeenshire | B124: 5226325 | C124: Gartly School | D124: Primary | E124: * | F124: * | G124: * | H124: * | I124: 84.0115052 | J124: 15.9884948
A125: Aberdeenshire | B125: 5226422 | C125: Glass School | D125: Primary | E125: * | F125: * | G125: * | H125: * | I125: 103.9411211 | J125: -3.941121097
A126: Aberdeenshire | B126: 5249929 | C126: Glenbervie School | D126: Primary | E126: * | F126: * | G126: * | H126: * | I126: 94.75587039 | J126: 5.244129607
A127: Aberdeenshire | B127: 5226724 | C127: Gordon Primary School | D127: Primary | E127: 51946.47 | F127: 70800 | G127: 64128.98 | H127: 58617.49 | I127: 52.24507067 | J127: 47.75492933
A128: Aberdeenshire | B128: 5250021 | C128: Gourdon School | D128: Primary | E128: 6309.64 | F128: 9720 | G128: 11010.06 | H128: 5019.58 | I128: 68.68563486 | J128: 31.31436514
A129: Aberdeenshire | B129: 5217229 | C129: Hatton (Cruden) School | D129: Primary | E129: 6312.19 | F129: 13200 | G129: 6300.18 | H129: 13212.01 | I129: 32.28843098 | J129: 67.71156902
A130: Aberdeenshire | B130: 5226627 | C130: Hatton (Fintray) School | D130: Primary | E130: * | F130: * | G130: * | H130: * | I130: 48.61696132 | J130: 51.38303868
A131: Aberdeenshire | B131: 5250820 | C131: Hill of Banchory School | D131: Primary | E131: 870.33 | F131: 10800 | G131: 6508.39 | H131: 5161.94 | I131: 55.76868863 | J131: 44.23131137
A132: Aberdeenshire | B132: 1003607 | C132: Hillside School | D132: Primary | E132: 5075.72 | F132: 8640 | G132: 9242.94 | H132: 4472.78 | I132: 67.38938969 | J132: 32.61061031
A133: Aberdeenshire | B133: 5231523 | C133: Insch School | D133: Primary | E133: 8913.97 | F133: 21600 | G133: 13571.64 | H133: 16942.33 | I133: 44.47680849 | J133: 55.52319151
A134: Aberdeenshire | B134: 5217326 | C134: Inverallochy School | D134: Primary | E134: 8055.17 | F134: 11880 | G134: 16000.76 | H134: 3934.41 | I134: 80.26397568 | J134: 19.73602432
A135: Aberdeenshire | B135: 5226821 | C135: Inverurie Market Place School | D135: Primary | E135: 1934.85 | F135: 28800 | G135: 27959.42 | H135: 2775.43 | I135: 90.96976234 | J135: 9.030237662 | K135: Now Uryside School
A136: Aberdeenshire | B136: 5250129 | C136: Johnshaven School | D136: Primary | E136: -358.9 | F136: 12960 | G136: 10793.17 | H136: 1807.93 | I136: 85.65260176 | J136: 14.34739824
A137: Aberdeenshire | B137: 5226929 | C137: Keig School | D137: Primary | E137: 0 | F137: 0 | G137: 0 | H137: 0 | I137: N/A | J137: N/A
A138: Aberdeenshire | B138: 5227127 | C138: Keithhall School | D138: Primary | E138: 0 | F138: 0 | G138: 0 | H138: 0 | I138: N/A | J138: N/A
A139: Aberdeenshire | B139: 5232228 | C139: Kellands School | D139: Primary | E139: 12808.56 | F139: 51600 | G139: 60902.59 | H139: 3505.97 | I139: 94.55667073 | J139: 5.443329272
A140: Aberdeenshire | B140: 5230721 | C140: Kemnay Primary School | D140: Primary | E140: 4231.62 | F140: 9600 | G140: 11129.74 | H140: 2701.88 | I140: 80.46591795 | J140: 19.53408205
A141: Aberdeenshire | B141: 5227224 | C141: Kennethmont School | D141: Primary | E141: 0 | F141: 0 | G141: 0 | H141: 0 | I141: N/A | J141: N/A
A142: Aberdeenshire | B142: 5256925 | C142: Kincardine O'Neil School | D142: Primary | E142: * | F142: * | G142: * | H142: * | I142: 37.18489488 | J142: 62.81510512
A143: Aberdeenshire | B143: 5232325 | C143: Kinellar School | D143: Primary | E143: 10980.12 | F143: 22800 | G143: 18150.35 | H143: 15629.77 | I143: 53.730863 | J143: 46.269137
A144: Aberdeenshire | B144: 5217423 | C144: King Edward School | D144: Primary | E144: * | F144: * | G144: * | H144: * | I144: 79.34499055 | J144: 20.65500945
A145: Aberdeenshire | B145: 5217520 | C145: Kininmonth School | D145: Primary | E145: * | F145: * | G145: * | H145: * | I145: 75.20639351 | J145: 24.79360649
A146: Aberdeenshire | B146: 5250226 | C146: Kinneff School | D146: Primary | E146: 0 | F146: 0 | G146: 0 | H146: 0 | I146: N/A | J146: N/A
A147: Aberdeenshire | B147: 5231922 | C147: Kintore School | D147: Primary | E147: 17111.12 | F147: 24840 | G147: 27734.88 | H147: 14216.24 | I147: 66.11237078 | J147: 33.88762922
A148: Aberdeenshire | B148: 5210020 | C148: Lairhillock School | D148: Primary | E148: 0 | F148: 0 | G148: 0 | H148: 0 | I148: N/A | J148: N/A
A149: Aberdeenshire | B149: 5227526 | C149: Largue School | D149: Primary | E149: * | F149: * | G149: * | H149: * | I149: 67.86977458 | J149: 32.13022542
A150: Aberdeenshire | B150: 5258227 | C150: Laurencekirk School | D150: Primary | E150: 7673.41 | F150: 36000 | G150: 31321.54 | H150: 12351.87 | I150: 71.71764238 | J150: 28.28235762
A151: Aberdeenshire | B151: 5222020 | C151: Lochpots School | D151: Primary | E151: 36284.18 | F151: 68400 | G151: 80018.15 | H151: 24666.03 | I151: 76.43767186 | J151: 23.56232814
A152: Aberdeenshire | B152: 5257026 | C152: Logie Coldstone School | D152: Primary | E152: * | F152: * | G152: * | H152: * | I152: 97.05210312 | J152: 2.947896881
A153: Aberdeenshire | B153: 5227623 | C153: Logie Durno School | D153: Primary | E153: 0 | F153: 0 | G153: 0 | H153: 0 | I153: N/A | J153: N/A
A154: Aberdeenshire | B154: 5217628 | C154: Longhaven School | D154: Primary | E154: 0 | F154: 0 | G154: 0 | H154: 0 | I154: N/A | J154: N/A
A155: Aberdeenshire | B155: 5217725 | C155: Longside School | D155: Primary | E155: 3437.93 | F155: 10800 | G155: 7545.54 | H155: 6692.39 | I155: 52.99604648 | J155: 47.00395352
A156: Aberdeenshire | B156: 5257123 | C156: Lumphanan School | D156: Primary | E156: * | F156: * | G156: * | H156: * | I156: 42.8516959 | J156: 57.1483041
A157: Aberdeenshire | B157: 5227720 | C157: Lumsden School | D157: Primary | E157: * | F157: * | G157: * | H157: * | I157: 51.00876137 | J157: 48.99123863
A158: Aberdeenshire | B158: 5250420 | C158: Luthermuir School | D158: Primary | E158: 10097.66 | F158: 10800 | G158: 15267.84 | H158: 5629.82 | I158: 73.06004596 | J158: 26.93995404
A159: Aberdeenshire | B159: 5212723 | C159: Macduff School | D159: Primary | E159: 30135.96 | F159: 55200 | G159: 70209.6 | H159: 15126.36 | I159: 82.27434249 | J159: 17.72565751
A160: Aberdeenshire | B160: 5222222 | C160: Markethill School | D160: Primary | E160: 55308.54 | F160: 67200 | G160: 66588.22 | H160: 55920.32 | I160: 54.35394137 | J160: 45.64605863 | K160: Now Turriff School
A161: Aberdeenshire | B161: 5250722 | C161: Marykirk School | D161: Primary | E161: * | F161: * | G161: * | H161: * | I161: 104.8278586 | J161: -4.827858628
A162: Aberdeenshire | B162: 5217822 | C162: Maud Primary School | D162: Primary | E162: 5391.23 | F162: 12000 | G162: 8403.21 | H162: 8988.02 | I162: 48.31866406 | J162: 51.68133594
A163: Aberdeenshire | B163: 5218721 | C163: Meethill School | D163: Primary | E163: 8714.44 | F163: 43200 | G163: 44163.14 | H163: 7751.3 | I163: 85.06908675 | J163: 14.93091325
A164: Aberdeenshire | B164: 5232724 | C164: Meiklemill School | D164: Primary | E164: 3041.44 | F164: 14400 | G164: 14519.03 | H164: 2922.41 | I164: 83.24444541 | J164: 16.75555459
A165: Aberdeenshire | B165: 5227828 | C165: Meldrum School | D165: Primary | E165: 12307.39 | F165: 25200 | G165: 10608.97 | H165: 26898.42 | I165: 28.28501263 | J165: 71.71498737
A166: Aberdeenshire | B166: 5227925 | C166: Methlick School | D166: Primary | E166: 66.73 | F166: 7200 | G166: 5029.94 | H166: 2236.79 | I166: 69.21875452 | J166: 30.78124548
A167: Aberdeenshire | B167: 5228026 | C167: Midmar School | D167: Primary | E167: 0 | F167: 0 | G167: 0 | H167: 0 | I167: N/A | J167: N/A
A168: Aberdeenshire | B168: 1003615 | C168: Midmill School | D168: Primary | E168: * | F168: * | G168: * | H168: * | I168: 99.81601519 | J168: 0.1839848098
A169: Aberdeenshire | B169: 5257727 | C169: Mill O'Forest School | D169: Primary | E169: 14926.26 | F169: 32400 | G169: 24587.05 | H169: 22739.21 | I169: 51.9522354 | J169: 48.0477646
A170: Aberdeenshire | B170: 5220122 | C170: Mintlaw Primary School | D170: Primary | E170: 988.37 | F170: 13200 | G170: 11135.96 | H170: 3052.41 | I170: 78.4865351 | J170: 21.5134649
A171: Aberdeenshire | B171: 5218020 | C171: Monquhitter School | D171: Primary | E171: 8300 | F171: 19200 | G171: 17654.49 | H171: 9845.51 | I171: 64.19814545 | J171: 35.80185455
A172: Aberdeenshire | B172: 5228220 | C172: Monymusk School | D172: Primary | E172: 369.25 | F172: 8400 | G172: 3036.11 | H172: 5733.14 | I172: 34.62223109 | J172: 65.37776891
A173: Aberdeenshire | B173: 5220327 | C173: New Deer School | D173: Primary | E173: 7292.89 | F173: 10800 | G173: 14010.38 | H173: 4082.51 | I173: 77.43583253 | J173: 22.56416747
A174: Aberdeenshire | B174: 5228425 | C174: New Machar School | D174: Primary | E174: 3006.91 | F174: 15600 | G174: 17286.45 | H174: 1320.46 | I174: 92.90338912 | J174: 7.096610883
A175: Aberdeenshire | B175: 5220424 | C175: New Pitsligo & St John's School | D175: Primary | E175: 18404.36 | F175: 30000 | G175: 20428.48 | H175: 27975.88 | I175: 42.20380148 | J175: 57.79619852
A176: Aberdeenshire | B176: 5228328 | C176: Newburgh Mathers School | D176: Primary | E176: 3046.33 | F176: 7560 | G176: 10530.1 | H176: 76.23 | I176: 99.28127826 | J176: 0.7187217445
A177: Aberdeenshire | B177: 5251028 | C177: Newtonhill School | D177: Primary | E177: 1025.71 | F177: 7560 | G177: 5976.99 | H177: 2608.72 | I177: 69.61555888 | J177: 30.38444112
A178: Aberdeenshire | B178: 5228522 | C178: Old Rayne School | D178: Primary | E178: * | F178: * | G178: * | H178: * | I178: 59.9478883 | J178: 40.0521117
A179: Aberdeenshire | B179: 5212928 | C179: Ordiquhill School | D179: Primary | E179: * | F179: * | G179: * | H179: * | I179: 56.70980231 | J179: 43.29019769
A180: Aberdeenshire | B180: 5228727 | C180: Oyne School | D180: Primary | E180: * | F180: * | G180: * | H180: * | I180: 94.75 | J180: 5.25
A181: Aberdeenshire | B181: 5218527 | C181: Peterhead Central School | D181: Primary | E181: 35227.66 | F181: 41040 | G181: 53421.41 | H181: 22846.25 | I181: 70.04464278 | J181: 29.95535722
A182: Aberdeenshire | B182: 5221722 | C182: Pitfour School | D182: Primary | E182: 23333.76 | F182: 55200 | G182: 55436.47 | H182: 23097.29 | I182: 70.58934909 | J182: 29.41065091
A183: Aberdeenshire | B183: 5228824 | C183: Pitmedden School | D183: Primary | E183: 1591.09 | F183: 7200 | G183: 3864.97 | H183: 4926.12 | I183: 43.96462782 | J183: 56.03537218
A184: Aberdeenshire | B184: 5228921 | C184: Port Elphinstone School | D184: Primary | E184: 5627.54 | F184: 15600 | G184: 13333.69 | H184: 7893.85 | I184: 62.81316629 | J184: 37.18683371
A185: Aberdeenshire | B185: 5219027 | C185: Port Erroll School | D185: Primary | E185: -4663.16 | F185: 26400 | G185: 20037.83 | H185: 1699.01 | I185: 92.18373048 | J185: 7.816269522
A186: Aberdeenshire | B186: 5251125 | C186: Portlethen Primary School | D186: Primary | E186: 281.36 | F186: 19200 | G186: 18692.41 | H186: 788.95 | I186: 95.9502314 | J186: 4.049768599
A187: Aberdeenshire | B187: 5213029 | C187: Portsoy School | D187: Primary | E187: 13599.36 | F187: 18000 | G187: 20492.74 | H187: 11106.62 | I187: 64.85175649 | J187: 35.14824351
A188: Aberdeenshire | B188: 5229022 | C188: Premnay School | D188: Primary | E188: 1249.21 | F188: 6480 | G188: 5731.82 | H188: 1997.39 | I188: 74.1579023 | J188: 25.8420977
A189: Aberdeenshire | B189: 5219124 | C189: Rathen School | D189: Primary | E189: 5284.63 | F189: 7560 | G189: 8454.6 | H189: 4390.03 | I189: 65.82205949 | J189: 34.17794051
A190: Aberdeenshire | B190: 5229227 | C190: Rayne North School | D190: Primary | E190: * | F190: * | G190: * | H190: * | I190: 61.68518777 | J190: 38.31481223
A191: Aberdeenshire | B191: 5251222 | C191: Redmyre School | D191: Primary | E191: 5138.26 | F191: 7200 | G191: 8069.05 | H191: 4269.21 | I191: 65.39860564 | J191: 34.60139436
A192: Aberdeenshire | B192: 5229324 | C192: Rhynie School | D192: Primary | E192: * | F192: * | G192: * | H192: * | I192: 3.515921395 | J192: 96.48407861
A193: Aberdeenshire | B193: 5220823 | C193: Rosehearty School | D193: Primary | E193: 10336.87 | F193: 22800 | G193: 19157.02 | H193: 13979.85 | I193: 57.81179695 | J193: 42.18820305
A194: Aberdeenshire | B194: 5219221 | C194: Rothienorman School | D194: Primary | E194: 155.48 | F194: 6000 | G194: 5030.47 | H194: 1125.01 | I194: 81.72343993 | J194: 18.27656007
A195: Aberdeenshire | B195: 5219523 | C195: Sandhaven School | D195: Primary | E195: 6322.67 | F195: 11880 | G195: 14132.11 | H195: 4070.56 | I195: 77.63756636 | J195: 22.36243364
A196: Aberdeenshire | B196: 5229529 | C196: Skene School | D196: Primary | E196: * | F196: * | G196: * | H196: * | I196: 79.45952579 | J196: 20.54047421
A197: Aberdeenshire | B197: 5229626 | C197: Slains School | D197: Primary | E197: * | F197: * | G197: * | H197: * | I197: 70.405 | J197: 29.595
A198: Aberdeenshire | B198: 5216729 | C198: St Andrew's Primary School | D198: Primary | E198: 35989.82 | F198: 62400 | G198: 86265.56 | H198: 12124.26 | I198: 87.67732271 | J198: 12.32267729
A199: Aberdeenshire | B199: 5219329 | C199: St Combs School | D199: Primary | E199: * | F199: * | G199: * | H199: * | I199: 65.19285267 | J199: 34.80714733
A200: Aberdeenshire | B200: 5251427 | C200: St Cyrus School | D200: Primary | E200: 2037.25 | F200: 19200 | G200: 12117.77 | H200: 9119.48 | I200: 57.05903542 | J200: 42.94096458
... 2310 more rows

Sheet Local Authority Summary
A1: Local Authority | B1: 2017/18 PEF Carry Forward | C1: 2018/19 PEF Allocation | D1: 2018/19 Actual PEF Expenditure | E1: 2018/19 PEF Carry Forward | F1: % Spend | G1: % Carry Forward | H1: % Cumulative Spend | I1: % Cumulative c/f | J1: 2017/18 PEF Allocation
A3: Aberdeen City | B3: 747916 | C3: 2845080 | D3: 2392081.23 | E3: 1200914.67 | F3: =D3/(C3+B3)*100 -> 66.57622858 | G3: =E3/(C3+B3)*100 -> 33.42376863 | H3: =((C3+J3)-E3)/(J3+C3)*100 -> 78.51934523 | I3: =E3/(C3+J3)*100 -> 21.48065477 | J3: 2745600
A4: Aberdeenshire | B4: 1152851 | C4: 2906520 | D4: 2908630 | E4: 1150741 | F4: 71.65223381 | G4: 28.34776619 | H4: 78.9846632 | I4: 21.0153368 | J4: 2569200
A5: Angus | B5: 816865 | C5: 2118240 | D5: 2365298 | E5: 569807 | F5: 80.58648668 | G5: 19.41351332 | H5: 86.53396952 | I5: 13.46603048 | J5: 2113200
A6: Argyll & Bute | B6: 669257 | C6: 1401600 | D6: 1604978.98 | E6: 465878.46 | F6: 77.50312938 | G6: 22.49689187 | H6: 82.85194125 | I6: 17.14805875 | J6: 1315200
A7: Clackmannanshire | B7: 762145.47 | C7: 1575120 | D7: 1656979 | E7: 680286.47 | F7: 70.89391519 | G7: 29.10608481 | H7: 78.30110267 | I7: 21.69889733 | J7: 1560000
A8: Dumfries & Galloway | B8: 1406489 | C8: 2972520 | D8: 3046080.55 | E8: 1332928.45 | F8: 69.5609566 | G8: 30.4390434 | H8: 77.22937807 | I8: 22.77062193 | J8: 2881200
A9: Dundee City | B9: 1920448 | C9: 4980840 | D9: 5196684 | E9: 1704604 | F9: 75.30020483 | G9: 24.69979517 | H9: 82.87663086 | I9: 17.12336914 | J9: 4974000
A10: East Ayrshire | B10: 1121075.3 | C10: 3465000 | D10: 3671903 | E10: 914172.3 | F10: 80.0663478 | G10: 19.9336522 | H10: 86.56774663 | I10: 13.43225337 | J10: 3340800
A11: East Dunbartonshire | B11: 274378.2 | C11: 1588440 | D11: 1724129.5 | E11: 138688.7 | F11: 92.55489881 | G11: 7.445101191 | H11: 95.60170808 | I11: 4.398291916 | J11: 1564800
A12: East Lothian | B12: 769689.38 | C12: 1565160 | D12: 2258082 | E12: 76767.38 | F12: 96.71210569 | G12: 3.287894314 | H12: 97.55109227 | I12: 2.448907731 | J12: 1569600
A13: East Renfrewshire | B13: 388062 | C13: 1412040 | D13: 1428306 | E13: 371796.34 | F13: 79.34583707 | G13: 20.65418182 | H13: 86.63775895 | I13: 13.36224105 | J13: 1370400
A14: Edinburgh City | B14: 3601900.78 | C14: 7452120 | D14: 8513289.31 | E14: 2540731.47 | F14: 77.01531849 | G14: 22.98468151 | H14: 82.97612607 | I14: 17.02387393 | J14: 7472400
A15: Eilean Siar | B15: 153911.03 | C15: 290880 | D15: 416257 | E15: 28534.03 | F15: 93.5848459 | G15: 6.415154101 | H15: 94.9558001 | I15: 5.044199901 | J15: 274800
A16: Falkirk | B16: 1530111 | C16: 3577320 | D16: 3513764 | E16: 1593667 | F16: 68.79709192 | G16: 31.20290808 | H16: 77.60483241 | I16: 22.39516759 | J16: 3538800
A17: Fife | B17: 4013788 | C17: 10101480 | D17: 11288042.27 | E17: 2827225.73 | F17: 79.97044243 | G17: 20.02955757 | H17: 85.78474926 | I17: 14.21525074 | J17: 9787200
A18: Glasgow City | B18: 8218891.57 | C18: 21785160 | D18: 22191537.01 | E18: 7812514.56 | F18: 73.96180132 | G18: 26.03819868 | H18: 81.99365311 | I18: 18.00634689 | J18: 21602400
A19: Highland | B19: 1872634 | C19: 4095000 | D19: 4081383 | E19: 1886251 | F19: 68.39197913 | G19: 31.60802087 | H19: 76.4777279 | I19: 23.5222721 | J19: 3924000
A20: Inverclyde | B20: 1235191 | C20: 2436120 | D20: 2879530.59 | E20: 791780.41 | F20: 78.43330598 | G20: 21.56669402 | H20: 83.79664035 | I20: 16.20335965 | J20: 2450400
A21: Midlothian | B21: 1097546.39 | C21: 2273160 | D21: 2307900 | E21: 1062807 | F21: 68.46932758 | G21: 31.53069051 | H21: 76.62084576 | I21: 23.37915424 | J21: 2272800
A22: Moray | B22: 568645 | C22: 1341960 | D22: 1327955 | E22: 582650 | F22: 69.50442399 | G22: 30.49557601 | H22: 77.699827 | I22: 22.300173 | J22: 1270800
A23: North Ayrshire | B23: 2017162 | C23: 4413960 | D23: 5886330.13 | E23: 544791.87 | F23: 91.52882079 | G23: 8.471179213 | H23: 93.81337333 | I23: 6.186626671 | J23: 4392000
A24: North Lanarkshire | B24: 3229244 | C24: 8834880 | D24: 10027675.54 | E24: 2036448.46 | F24: 83.11979834 | G24: 16.88020166 | H24: 88.49885206 | I24: 11.50114794 | J24: 8871600
A25: Orkney Islands | B25: 90367.48 | C25: 232200 | D25: 197400 | E25: 125100 | F25: 61.19649755 | G25: 38.78258279 | H25: 71.47742818 | I25: 28.52257182 | J25: 206400
A26: Perth & Kinross | B26: 720267 | C26: 1661520 | D26: 1742917 | E26: 638870 | F26: 73.17686258 | G26: 26.82313742 | H26: 80.45982285 | I26: 19.54017715 | J26: 1608000
A27: Renfrewshire | B27: 1531991.31 | C27: 4272240 | D27: 4457706.5 | E27: 1346524.81 | F27: 76.80097953 | G27: 23.19902047 | H27: 84.19616337 | I27: 15.80383663 | J27: 4248000
A28: Scottish Borders | B28: 1000915 | C28: 1841280 | D28: 1785178 | E28: 1057018 | F28: 62.80983536 | G28: 37.19019983 | H28: 71.29291053 | I28: 28.70708947 | J28: 1840800
A29: Shetland Islands | B29: 62445.43 | C29: 233880 | D29: 208440.63 | E29: 87884.8 | F29: 70.34179618 | G29: 29.65820382 | H29: 79.1880269 | I29: 20.8119731 | J29: 188400
A30: South Ayrshire | B30: 856938.55 | C30: 2413200 | D30: 2449528.33 | E30: 820610.22 | F30: 74.90594947 | G30: 25.09405053 | H30: 83.0312196 | I30: 16.9687804 | J30: 2422800
A31: South Lanarkshire | B31: 2858645 | C31: 7988400 | D31: 9312741 | E31: 1534304 | F31: 85.85509694 | G31: 14.14490306 | H31: 90.32326749 | I31: 9.676732511 | J31: 7867200
A32: Stirling | B32: 561450.9 | C32: 1483440 | D32: 1696356.26 | E32: 348534.98 | F32: 82.95583202 | G32: 17.04418461 | H32: 88.01395606 | I32: 11.98604394 | J32: 1424400
A33: West Dunbartonshire | B33: 912334 | C33: 3425880 | D33: 4027063.5 | E33: 311150.42 | F33: 92.82768208 | G33: 7.172316073 | H33: 95.42848046 | I33: 4.571519538 | J33: 3380400
A34: West Lothian | B34: 1496703.51 | C34: 5160840 | D34: 5601315.6 | E34: 1056227.91 | F34: 84.13487034 | G34: 15.86512966 | H34: 89.65784336 | I34: 10.34215664 | J34: 5052000
A35: TOTAL | B35: =SUM(B3:B34) -> 47660259.3 | C35: =SUM(C3:C34) -> 122145480 | D35: =SUM(D3:D34) -> 132165462.9 | E35: =SUM(E3:E34) -> 37640211.44 | F35: 77.83333088 | G35: 22.16663088 | H35: 84.46192945 | I35: 15.53807055 | J35: =SUM(J3:J34) -> 120099600
A38: School | B38: 2017/18 PEF Carry Forward | C38: PEF Allocation 2018/19 | D38: 2018/19 PEF Expenditure | E38: 2018/19 PEF Carry Forward | F38: % Spend | G38: % Carry Forward
A39: Corseford Residential | C39: 8640 | D39: chased actual spend MY
A40: Corseford Residential | B40: 0 | C40: 9600 | D40: 9600 | E40: 0 | F40: =D40/(B40+C40)*100 -> 100 | G40: =E40/(C40+B40)*100 -> 0
A41: Craigalbert | B41: 0 | C41: 15600 | D41: 18092 | E41: -2492 | F41: 115.974359 | G41: -15.97435897
A42: Donaldsons | B42: 1855 | C42: 12000 | D42: 13855 | E42: 0 | F42: 100 | G42: 0
A43: East Park | B43: 0 | C43: 14400 | D43: 6701 | E43: 7699 | F43: 46.53472222 | G43: 53.46527778
A44: Harmeny | B44: -197 | C44: 28800 | D44: 13800 | E44: 15000 | F44: 48.24668741 | G44: 52.44205153
A45: Jordanhill | B45: 0 | C45: 13200 | D45: 20250 | E45: -7050 | F45: 153.4090909 | G45: -53.40909091
A46: Royal Blind | B46: 305 | C46: 8400 | D46: 8413 | E46: 292 | F46: 96.64560597 | G46: 3.354394026
A47: Stanmore | B47: 5589 | C47: 10800 | D47: 9939 | E47: 6450 | F47: 60.64433461 | G47: 39.35566539
A48: Sum of Grant Maintained Schools | B48: =SUM(B40:B47) -> 7552 | C48: =SUM(C40:C47) -> 112800 | D48: =SUM(D40:D47) -> 100650 | E48: =SUM(E40:E47) -> 19899 | F48: =D48/(C48+B48)*100 -> 83.62968625 | G48: =100-F48 -> 16.37031375

Sheet 2017-18 Grant Tracker (hidden)
A1: LA | B1: PEF Allocation 2017/18 | F1: Grant Offer letter issued | G1: Grant Acceptance received | H1: Month of draw down we have proposed | I1: Grant Claim Received | J1: Payment Processed | K1: Statement of Compliance received | L1: School Level Spend received
B2: Primary | C2: Secondary | D2: Special | E2: Total
A3: Aberdeen City | B3: 2140800 | C3: 556800 | D3: 48000 | E3: 2745600 | F3: 2017-03-30 | G3: 2017-05-03 | H3: July | I3: 2017-05-03 | J3: 2017-07-03 | K3: 2018-05-03 | L3: 2018-05-03
A4: Aberdeenshire | B4: 1952400 | C4: 572400 | D4: 44400 | E4: 2569200 | F4: 2017-03-30 | G4: 2017-04-10 | H4: September | I4: 2017-08-30 | J4: 2017-09-01 | K4: 2018-04-30 | L4: 2018-04-30
A5: Angus | B5: 1640400 | C5: 472800 | D5: 0 | E5: 2113200 | F5: 2017-03-30 | G5: 2017-05-09 | H5: July | I5: 2017-05-09 | J5: 2017-07-03 | K5: 2018-05-10 | L5: 2018-05-10
A6: Argyll & Bute | B6: 1017600 | C6: 291600 | D6: 6000 | E6: 1315200 | F6: 2017-03-31 | G6: 2017-04-28 | H6: July | I6: 2017-06-09 | J6: 2017-07-03 | K6: 2018-04-30 | L6: 2018-04-30
A7: Clackmannanshire | B7: 1248000 | C7: 241200 | D7: 39600 | E7: 1560000 | F7: 2017-03-30 | G7: 2017-04-28 | H7: June | I7: 2017-04-28 | J7: 2017-06-01 | K7: 2018-04-25 | L7: 2018-04-25
A8: Dumfries & Galloway | B8: 2192400 | C8: 680400 | D8: 8400 | E8: 2881200 | F8: 2017-03-30 | G8: 2017-04-26 | H8: June | I8: 2017-04-26 | J8: 2017-06-01 | K8: 2018-04-30 | L8: 2018-04-27
A9: Dundee City | B9: 3726000 | C9: 1178400 | D9: 69600 | E9: 4974000 | F9: 2017-03-30 | G9: 2017-04-28 | H9: July | I9: 2017-04-28 | J9: 2017-07-03 | K9: 2018-04-25 | L9: 2018-04-25
A10: East Ayrshire | B10: 2457600 | C10: 721200 | D10: 162000 | E10: 3340800 | F10: 2017-03-30 | G10: 24/04/207 | H10: July | I10: 2017-06-05 | J10: 2017-07-03 | K10: 2018-04-24 | L10: 2018-05-02
A11: East Dunbartonshire | B11: 1092000 | C11: 390000 | D11: 82800 | E11: 1564800 | F11: 2017-03-30 | G11: 2017-04-03 | H11: October | I11: 2017-09-26 | J11: 2017-10-02 | K11: 2018-05-07 | L11: 2018-06-13
A12: East Lothian | B12: 1262400 | C12: 307200 | D12: 0 | E12: 1569600 | F12: 2017-03-30 | G12: 2017-04-27 | H12: October | I12: 2017-09-22 | J12: 2017-10-02 | K12: 2018-04-27 | L12: 2018-05-03
A13: East Renfrewshire | B13: 878400 | C13: 386400 | D13: 105600 | E13: 1370400 | F13: 2017-03-30 | G13: 2017-04-27 | H13: October | I13: 2017-09-13 | J13: 2017-10-02 | K13: 2018-04-30 | L13: 2018-04-30
A14: Edinburgh City | B14: 5878800 | C14: 1314000 | D14: 279600 | E14: 7472400 | F14: 2017-03-31 | G14: 2017-05-03 | H14: July | I14: 2017-05-03 | J14: 2017-07-03 | K14: 2018-07-06 | L14: 2018-06-07
A15: Eilean Siar | B15: 205200 | C15: 69600 | D15: 0 | E15: 274800 | F15: 2017-03-31 | G15: 2017-04-19 | H15: October | I15: 2017-06-01 | J15: 2017-10-02 | K15: 2018-05-10 | L15: 2018-05-10
A16: Falkirk | B16: 2784000 | C16: 723600 | D16: 31200 | E16: 3538800 | F16: 2017-03-31 | G16: 2017-04-03 | H16: October | I16: 2017-09-07 | J16: 2017-10-02 | K16: 2018-04-30 | L16: 2018-04-30
A17: Fife | B17: 7519200 | C17: 2173200 | D17: 94800 | E17: 9787200 | F17: 2017-03-31 | G17: 2017-04-03 | H17: September | I17: 2017-08-02 | J17: 2017-09-01 | K17: 2018-06-12 | L17: 2018-06-12
A18: Glasgow City | B18: 16497600 | C18: 4714800 | D18: 390000 | E18: 21602400 | F18: 2017-03-31 | G18: 2017-04-11 | H18: August | I18: 2017-07-14 | J18: 2017-08-03 | K18: 2018-05-10 | L18: 2018-05-10
A19: Highland | B19: 2956800 | C19: 942000 | D19: 25200 | E19: 3924000 | F19: 2017-03-31 | G19: 2017-05-03 | H19: October | I19: 2017-09-13 | J19: 2017-10-02 | K19: 2018-06-13 | L19: 2018-06-13
A20: Inverclyde | B20: 1818000 | C20: 571200 | D20: 61200 | E20: 2450400 | F20: 2017-03-31 | G20: 2017-04-04 | H20: May | I20: 2017-04-04 | J20: 2017-05-22 | K20: 2018-04-30 | L20: 2018-04-30
A21: Midlothian | B21: 1780800 | C21: 448800 | D21: 43200 | E21: 2272800 | F21: 2017-03-31 | G21: 2017-04-27 | H21: July | I21: 2017-07-05 | J21: 2017-07-03 | K21: 2018-04-27 | L21: 2018-05-02
A22: Moray | B22: 997200 | C22: 273600 | D22: 0 | E22: 1270800 | F22: 2017-03-31 | G22: 2017-04-07 | H22: July | I22: 2017-06-06 | J22: 2017-07-03 | K22: 2018-06-13 | L22: 2018-05-01
A23: North Ayrshire | B23: 3276000 | C23: 1046400 | D23: 69600 | E23: 4392000 | F23: 2017-03-31 | G23: 2017-04-04 | H23: September | I23: 2017-08-30 | J23: 2017-09-01 | K23: 2018-04-30 | L23: 2018-04-30
A24: North Lanarkshire | B24: 6608400 | C24: 1962000 | D24: 301200 | E24: 8871600 | F24: 2017-04-24 | G24: 2017-05-02 | H24: October | I24: 2017-09-19 | J24: 2017-10-02 | K24: 2018-04-30 | L24: 2018-05-16
A25: Orkney Islands | B25: 153600 | C25: 52800 | D25: 0 | E25: 206400 | F25: 2017-03-31 | G25: 2017-05-02 | H25: October | I25: 2017-08-29 | J25: 2017-10-02 | K25: 2018-05-18 | L25: 2018-05-18
A26: Perth & Kinross | B26: 1252800 | C26: 348000 | D26: 7200 | E26: 1608000 | F26: 2017-03-31 | G26: 2017-05-02 | H26: July | I26: 2017-05-02 | J26: 2017-07-03 | K26: 2018-04-30 | L26: 2018-04-30
A27: Renfrewshire | B27: 3033600 | C27: 961200 | D27: 253200 | E27: 4248000 | F27: 2017-03-31 | G27: 2017-04-24 | H27: July | I27: 2017-04-24 | J27: 2017-07-03 | K27: 2018-05-01 | L27: 2018-05-01
A28: Scottish Borders | B28: 1372800 | C28: 468000 | D28: 0 | E28: 1840800 | F28: 2017-03-31 | G28: 2017-04-21 | H28: September | I28: 2017-08-30 | J28: 2017-09-01 | K28: 2018-06-21 | L28: 2018-06-21
A29: Shetland Islands | B29: 146400 | C29: 42000 | D29: 0 | E29: 188400 | F29: 2017-03-31 | G29: 2017-04-19 | H29: May | I29: 2017-04-19 | J29: 2017-05-17 | K29: 2018-05-03 | L29: 2018-04-30
A30: South Ayrshire | B30: 1886400 | C30: 464400 | D30: 72000 | E30: 2422800 | F30: 2017-03-31 | G30: 2017-04-05 | H30: October | I30: 2017-09-13 | J30: 2017-10-02 | K30: 2018-04-18 | L30: 2018-05-08
A31: South Lanarkshire | B31: 5888400 | C31: 1717200 | D31: 261600 | E31: 7867200 | F31: 2017-03-31 | G31: 2017-04-26 | H31: September | I31: 2017-08-23 | J31: 2017-09-01 | K31: 2018-04-27 | L31: 2018-04-27
A32: Stirling | B32: 1015200 | C32: 384000 | D32: 25200 | E32: 1424400 | F32: 2017-03-31 | G32: 2017-05-04 | H32: July | I32: 2017-05-04 | J32: 2017-07-03 | K32: 2018-04-27 | L32: 2018-04-27
A33: West Dunbartonshire | B33: 2497200 | C33: 810000 | D33: 73200 | E33: 3380400 | F33: 2017-03-31 | G33: 2017-04-28 | H33: October | I33: 2017-06-30 | J33: 2017-10-02 | K33: 2018-04-27 | L33: 2018-04-27
A34: West Lothian | B34: 3700800 | C34: 1126800 | D34: 224400 | E34: 5052000 | F34: 2017-03-31 | G34: 2017-04-06 | H34: August | I34: 2017-07-06 | J34: 2017-08-03 | K34: 2018-05-02 | L34: 2018-04-26
A35: Sum of local authorities | B35: 90877200 | C35: 26401200 | D35: 2779200 | E35: 120099600
A37: School | E37: PEF Allocation 2017/18 | F37: Grant Offer letter issued | G37: Grant Acceptance received | H37: Month of draw down we have proposed | I37: Grant Claim Received | J37: Payment Processed | K37: Statement of Compliance received | L37: School Level Spend received
A38: Jordanhill | E38: 13200 | F38: 2017-04-25 | G38: 2017-04-27 | H38: September | I38: 2017-08-18 | J38: 2017-09-01 | K38: 2018-08-02 | L38: 2018-08-30
A39: East Park | E39: 14400 | F39: 2017-04-25 | G39: 2017-05-02 | H39: September | I39: 2017-08-31 | J39: 2017-09-01 | K39: 2018-04-26 | L39: 2018-04-26
A40: Donaldsons | E40: 12000 | F40: 2017-04-25 | G40: 2017-06-15 | H40: September | I40: 2017-06-15 | J40: 2017-09-01 | K40: 2018-09-04 | L40: 2018-09-04
A41: Harmeny | E41: 32400 | F41: 2017-04-25 | G41: 2017-06-02 | H41: September | I41: 2017-09-04 | J41: 2017-09-07 | K41: 2018-08-31 | L41: late due to staff absence
A42: Craigalbert | E42: 13200 | F42: 2017-04-25 | G42: 2017-05-02 | H42: September | I42: 2017-08-31 | J42: 2017-09-01 | K42: 2018-08-31 | L42: 2018-08-31
A43: Royal Blind | E43: 8400 | F43: 2017-04-25 | G43: 2017-04-26 | H43: September | I43: 2017-08-29 | J43: 2017-09-01 | K43: 2018-09-07 | L43: 2018-09-07
A44: Stanmore | E44: 14400 | F44: 2017-04-25 | G44: 2017-04-27 | H44: September | I44: 2017-08-25 | J44: 2017-09-01 | K44: 2018-08-28
A45: Sum of Grant Maintained Schools | E45: 108000
B47: PEF Total Allocation | E47: 120207600
B49: PEF Total Spend
